Cogmind - Beta 14 @@@ ROGUE MODE // 2024.09.10 @ 20:09:18 Player: Buttons Result: Destroyed by as-19326 with Assembled Heavy Rifle Performance ------------- Evolutions (0) 0 Regions Visited (4) 800 Robots Destroyed (24) 120 Value Destroyed (470) 470 Prototype IDs (1) 20 Alien Tech Used (0) 0 Bonus (26) 26 TOTAL SCORE: 1436 Bonus ------- Follower Combat Kills 32 Friendly Fire -6 Cogmind --------- Core Integrity 0/250 Matter 282/300 Energy 100/100 System Corruption 3% Temperature Cool (0) Movement Core (50) Location -9/Mines Parts ------- > --- POWER (1) -------- (None) > --- PROPULSION (2) --- (None) > --- UTILITY (2) ------ Improved Heat Sink > --- WEAPON (2) ------- (None) > --- INVENTORY (5) ---- Light Ion Engine Aluminum Leg Thief Drone Bay (1/3) Medium Laser Particle Gun Peak State ------------ > --- POWER ------------ Light Nuclear Core > --- PROPULSION ------- Light Treads Light Treads > --- UTILITY ---------- Medium Storage Unit Thief Drone Bay > --- WEAPON ----------- Particle Gun Light Assault Rifle > --- INVENTORY -------- Light Ion Engine Aluminum Leg Aluminum Leg Aluminum Leg Improved Heat Sink Medium Laser Medium Laser Particle Gun Makeshift Axe [Rating: 17] Favorites ----------- Power Ion Engine Engine Ion Engine Power Core Light Nuclear Core Propulsion Light Treads Treads Light Treads Utility Medium Storage Unit Device Thief Drone Bay Storage Medium Storage Unit Processor Signal Interpreter Weapon Assault Rifle Energy Gun Particle Gun Ballistic Gun Assault Rifle Build | -11 -10 -10 -10 -9 ------- Run | Yrd Mat Min Exi Min Slots Evolved . | . . . . . Power . | . . . . . Propulsion . | . . . . . Utility . | . . . . . Weapon . | . . . . . Parts Attached 16 | 7 3 4 . 2 Power 3 | 1 . 2 . . Engine 2 | 1 . 1 . . Core 1 | . . 1 . . Reactor . | . . . . . Propulsion 3 | 2 . 1 . . Treads 3 | 2 . 1 . . Leg . | . . . . . Wheel . | . . . . . Hover . | . . . . . Flight . | . . . . . Utility 7 | 2 3 1 . 1 Device 3 | 1 . 1 . 1 Storage 3 | 1 2 . . . Processor 1 | . 1 . . . Hackware . | . . . . . Protection . | . . . . . Artifact . | . . . . . Weapon 3 | 2 . . . 1 Energy Gun 1 | . . . . 1 Energy Cannon . | . . . . . Ballistic Gun 2 | 2 . . . . Ballistic Cannon . | . . . . . Launcher . | . . . . . Special Weapon . | . . . . . Impact Weapon . | . . . . . Slashing Weapon . | . . . . . Piercing Weapon . | . . . . . Special Melee Weapon . | . . . . . Unidentified Prototypes 1 | . . 1 . . Parts Lost 7 | . . 1 . 6 Power 2 | . . 1 . 1 Propulsion 2 | . . . . 2 Utility . | . . . . . Weapon 3 | . . . . 3 Highest Loss Streak 6 | . . 1 . 6 To Critical Strikes . | . . . . . Average Slot Usage (%) 95 | . 100 99 100 46 Engine 6 | . 14 7 . . Core 6 | . . 6 14 5 Treads 26 | . 28 28 28 10 Device 10 | . 3 13 14 14 Storage 13 | . 14 14 14 5 Processor 3 | . 10 . . . Ballistic Gun 26 | . 28 28 28 9 Peak Build Rating 17 | 8 8 16 16 17 Average Rating 12 | 5 7 14 16 8 On Entrance 9 | . 8 8 16 16 Naked Turns . | . . . . . Heaviest Build 49 | 14 49 22 22 23 Greatest Support 40 | 40 40 40 40 40 Greatest Overweight (x) 4 | 3 1 . . 4 Average Overweight (x) . | . . . . . Largest Inventory Capacity 20 | 8 20 10 10 10 Average Capacity 9 | 7 10 10 10 7 Most Carried 10 | 8 10 10 10 10 Average Carried 9 | 3 9 9 9 7 Final Capacity 10 | 8 10 10 10 5 Final Carried 10 | 8 10 10 10 5 Class Distribution -------------------- 100% | Mutant Dominant Class ---------------- Mutant | -10/Materials Mutant | -10/Mines Mutant | -10/Exiles Mutant | -9/Mines Resources | -11 -10 -10 -10 -9 ----------- Run | Yrd Mat Min Exi Min Matter Collected 587 | 302 114 171 . . Remotely . | . . . . . Salvage Created 778 | 104 299 375 . . Parts 51 | 9 22 20 . . Haulers Intercepted 1 | . 1 . . . Recyclers Shooed 4 | 1 2 1 . . Parts Field Recycled . | . . . . . Retrieved Matter . | . . . . . Parts Self-Destructed . | . . . . . Prevented . | . . . . . Kills | -11 -10 -10 -10 -9 ------- Run | Yrd Mat Min Exi Min Combat Hostiles Destroyed 16 | . 6 10 . . Guns 16 | . 6 10 . . Classes Destroyed 6 | 2 4 . . . Tunneler 2 | 2 . . . . Hauler 1 | . 1 . . . Recycler 3 | 1 1 1 . . Watcher 2 | . 2 . . . Swarmer 8 | . 3 5 . . Grunt 8 | . 3 5 . . Best Kill Streak 5 | 3 4 5 . . Combat Bots Only 5 | . 3 5 . . Max Kills in Single Turn 2 | 1 2 1 . . Gunslinging 1 | . 1 . . . Exploded . | . . . . . Melee . | . . . . . Uniques/NPCs Destroyed . | . . . . . Combat | -11 -10 -10 -10 -9 -------- Run | Yrd Mat Min Exi Min Hostile Shots Fired 118 | . 18 58 . 42 Missed 28 | . 7 11 . 10 Damage Taken 1244 | . 186 469 . 589 Core 254 | . 19 93 . 142 Absorbed by Shields . | . . . . . Core Remaining (%) 100 | 100 . . . . Volleys Fired 72 | 8 21 34 . 9 Largest 2 | 2 2 2 . 2 Hottest 85 | 40 40 40 . 85 Shots Fired 140 | 16 42 68 . 14 Gun 140 | 16 42 68 . 14 Cannon . | . . . . . Launcher . | . . . . . Special . | . . . . . Kinetic 134 | 16 42 68 . 8 Thermal 6 | . . . . 6 Explosive . | . . . . . Electromagnetic . | . . . . . Robot Hit Streak 10 | 4 9 9 . 10 Robot Miss Streak 5 | 2 1 5 . 3 Penetration Max . | . . . . . Secondary Targets 1 | . 1 . . . Max Gunslinging Chain 1 | . 1 . . . Shots Hit Robots 89 | 8 32 41 . 8 Core Hits 50 | 4 20 21 . 5 Critical Kills . | . . . . . Critical Parts Destroyed . | . . . . . Critical Strikes 1 | . . . . 1 Burn 1 | . . . . 1 Melee Attacks . | . . . . . Impact . | . . . . . Slashing . | . . . . . Piercing . | . . . . . Sneak Attacks . | . . . . . Combat Hostiles . | . . . . . Follow-up Attacks . | . . . . . Damage Inflicted 991 | 96 321 423 . 151 Guns 990 | 96 321 423 . 150 Cannons . | . . . . . Explosions . | . . . . . Melee . | . . . . . Ramming 1 | . . . . 1 Kinetic 918 | 96 321 423 . 78 Thermal 72 | . . . . 72 Explosive . | . . . . . Electromagnetic . | . . . . . Impact . | . . . . . Slashing . | . . . . . Piercing . | . . . . . Highest Corruption 3 | . . . . 3 Average Corruption 3 | . . . . 3 Corruption Purged . | . . . . . Corruption Blocked . | . . . . . Effects 3 | . . . . 3 Matter Fused 2 | . . . . 2 Data Loss (minor) 1 | . . . . 1 Overload Shots . | . . . . . Overflow Damage . | . . . . . Projectiles . | . . . . . Explosions . | . . . . . Melee . | . . . . . Knockbacks . | . . . . . Impact . | . . . . . Kinetic . | . . . . . Secondary . | . . . . . Self-Inflicted Damage . | . . . . . Shots . | . . . . . Rammed 2 | . . . . 2 Targets Rammed 2 | . . . . 2 Kicked . | . . . . . Crushed . | . . . . . Highest Temperature 158 | . 9 25 . 158 Average Temperature 31 | . 7 9 . 65 Received Heat Transfer 289 | . 30 159 . 100 Siege Activations . | . . . . . Robots Corrupted . | . . . . . Combat Hostiles . | . . . . . Parts Fried . | . . . . . Impact Corruptions . | . . . . . Robots Melted . | . . . . . Combat Hostiles . | . . . . . Parts Melted . | . . . . . Heat Transferred 259 | . . . . 259 Parts Sabotaged . | . . . . . Parts Stolen . | . . . . . Parts Stripped . | . . . . . Power Chain Reactions . | . . . . . Alert | -11 -10 -10 -10 -9 ------- Run | Yrd Mat Min Exi Min Peak Influence 209 | 15 209 175 . 45 Initial 9 | . 9 . . . Average 46 | 4 58 50 . 16 Maximum Alert Level 1 | . 1 . . . Low Security (%) 95 | 100 89 100 . 100 Level 1 4 | . 10 . . . Level 2 . | . . . . . Level 3 . | . . . . . Level 4 . | . . . . . Level 5 . | . . . . . High Security . | . . . . . Max Security . | . . . . . Squads Dispatched 1 | . 1 . . . Investigation . | . . . . . Extermination . | . . . . . Reinforcement 1 | . 1 . . . Assault . | . . . . . Garrison . | . . . . . Intercept . | . . . . . Searches Triggered . | . . . . . Construction Impeded . | . . . . . Haulers Reinforced . | . . . . . Active Scanning Responses . | . . . . . Cargo Convoy Interrupts . | . . . . . Stealth | -11 -10 -10 -10 -9 --------- Run | Yrd Mat Min Exi Min Distress Signals 2 | . 2 . . . Communications Jammed . | . . . . . Distress Signals . | . . . . . Times Spotted 42 | . 9 13 . 20 Peak Tracking Total 8 | . 4 4 . 8 Tactical Retreats 3 | . 1 1 . 1 Traps | -11 -10 -10 -10 -9 ------- Run | Yrd Mat Min Exi Min Traps Triggered 2 | . 2 . . . Indirectly . | . . . . . Trap Hack Attempts . | . . . . . Triggered . | . . . . . Disarmed . | . . . . . Reprogrammed . | . . . . . Reused . | . . . . . Traps Extracted . | . . . . . Installed . | . . . . . Triggered . | . . . . . Machines | -11 -10 -10 -10 -9 ---------- Run | Yrd Mat Min Exi Min Machines Disabled . | . . . . . Max in Single Turn . | . . . . . Machines Repaired . | . . . . . Machines Dismantled . | . . . . . Machines Sabotaged . | . . . . . Overloaded Fab Kills . | . . . . . Hacking | -11 -10 -10 -10 -9 --------- Run | Yrd Mat Min Exi Min Machines Accessed 12 | . 7 1 4 . Terminals 6 | . 6 . . . Fabricators . | . . . . . Repair Stations 1 | . 1 . . . Recycling Units . | . . . . . Scanalyzers . | . . . . . Garrison Access . | . . . . . Total Hacks 27 | . 22 1 4 . Successful 16 | . 11 1 4 . Failed 11 | . 11 . . . Catastrophic . | . . . . . Database Lockouts . | . . . . . Manual 19 | . 19 . . . Terminals 19 | . 19 . . . Fabricators . | . . . . . Repair Stations 3 | . 3 . . . Recycling Units . | . . . . . Scanalyzers . | . . . . . Garrison Access . | . . . . . Terminal Hacks 6 | . 1 1 4 . Record 4 | . . . 4 . Robot Analysis 1 | . 1 . . . Open Door 1 | . . 1 . . Fabricator Hacks . | . . . . . Repair Station Hacks 1 | . 1 . . . Scan Component 1 | . 1 . . . Recycling Unit Hacks . | . . . . . Scanalyzer . | . . . . . Garrison Access Hacks . | . . . . . Unauthorized Hacks 9 | . 9 . . . Terminals 9 | . 9 . . . Botnet 4 | . 4 . . . Skim 5 | . 5 . . . Fabricators . | . . . . . Repair Stations . | . . . . . Recycling Units . | . . . . . Scanalyzers . | . . . . . Garrison Access . | . . . . . Data Cores Recovered . | . . . . . Used . | . . . . . Hacking Detections 7 | . 7 . . . Full Trace Events . | . . . . . Feedback Events . | . . . . . Feedback Blocked . | . . . . . Robot Schematics Acquired . | . . . . . Robots Built . | . . . . . Authchips . | . . . . . Time . | . . . . . Total Robot Build Rating . | . . . . . Part Schematics Acquired . | . . . . . Parts Built . | . . . . . Authchips . | . . . . . Time . | . . . . . Total Part Build Rating . | . . . . . Parts Repaired . | . . . . . Time . | . . . . . Parts Recycled . | . . . . . Recycled Matter . | . . . . . Retrieved Matter . | . . . . . Retrieved Components . | . . . . . Parts Scanalyzed . | . . . . . Part Schematics Acquired . | . . . . . Parts Damaged . | . . . . . Bothacking | -11 -10 -10 -10 -9 ------------ Run | Yrd Mat Min Exi Min Used RIF Installer . | . . . . . Robots Hacked . | . . . . . Non-combat . | . . . . . Combat . | . . . . . Robot Hacks Applied . | . . . . . Relay Couplers Released . | . . . . . Fabnet Peak Effective % . | . . . . . Robots Rewired . | . . . . . Allies Hacked . | . . . . . Hacks Repelled . | . . . . . Allies | -11 -10 -10 -10 -9 -------- Run | Yrd Mat Min Exi Min Total Allies 1 | . . 1 . . Largest Group 1 | . . 1 . . Highest-Rated Group 31 | . . 31 . . Highest-Rated Ally 31 | . . 31 . . Total Orders 1 | . . 1 . . RETURN 1 | . . 1 . . Ally Attacks 36 | . . 10 . 26 Total Damage 300 | . . 148 . 152 Kills 5 | . . 2 . 3 Allies Corrupted 2 | . . . . 2 Allies Melted . | . . . . . Intel | -11 -10 -10 -10 -9 ------- Run | Yrd Mat Min Exi Min Robot Analysis Total 1 | . 1 . . . Derelict Logs Recovered 2 | . . 1 . 1 Drone Launches 4 | . . 1 . 3 Drone Recoveries 2 | . . 1 . 1 Exploration | -11 -10 -10 -10 -9 ------------- Run | Yrd Mat Min Exi Min Turns Passed 3243 | 155 961 1033 820 274 Spaces Moved 1767 | 73 530 549 512 103 Core 69 | 19 . . . 50 Treads 1698 | 54 530 549 512 53 Legs . | . . . . . Wheels . | . . . . . Hover . | . . . . . Flight . | . . . . . Fastest Speed 50 | 50 160 160 160 50 Average Speed 158 | 157 163 160 160 110 Slowest Speed 250 | 200 240 160 160 250 Overloaded Moves . | . . . . . Propulsion Burnouts . | . . . . . Robots Hopped . | . . . . . Cave-ins Triggered . | . . . . . Exploration Rate (%) 56 | 6 69 98 94 15 Regions Visited 4 Branch Regions 3 Pre-discovered Areas 2 | . 2 . . . Known Exits Taken 2 | . 1 1 . . Unknown Exits Taken 2 | 1 . . 1 . Scrap Searched . | . . . . . Spaces Dug . | . . . . . Terrain Destroyed . | . . . . . Melee . | . . . . . Projectile . | . . . . . AOE . | . . . . . Terrain Rammed . | . . . . . Walls Destroyed . | . . . . . Machines Disabled . | . . . . . Actions | -11 -10 -10 -10 -9 --------- Run | Yrd Mat Min Exi Min Total 2092 | 95 590 644 513 250 Wait 198 | . 16 49 . 133 Move 1763 | 72 529 548 511 103 Hop . | . . . . . Pick Up 25 | 8 12 4 1 . Fast Attach 10 | 7 1 2 . . Attach 2 | . . 1 . 1 Detach . | . . . . . Swap 4 | . 2 1 . 1 Drop 16 | . 9 5 1 1 Fire 72 | 8 21 34 . 9 Melee . | . . . . . Ram 2 | . . . . 2 Kick . | . . . . . Crush . | . . . . . Escape Stasis . | . . . . . Rewire . | . . . . . Trap . | . . . . . Miscellaneous . | . . . . . Route ------- -11/Scrapyard -10/Materials (discovered 5 exits: *Mat x2 / *Min x2 / Sub) -10/Mines (discovered 3 exits: *Mat x2 / *Exi) -10/Exiles -9/Mines History --------- Turn | Location | Event 2 | -11/Scrapyard | Discovered new exit (range 16) 156 | -11/Scrapyard | Entered Materials 195 | -10/Materials | Discovered new exit (range 16) 303 | -10/Materials | Build established: Mutant 395 | -10/Materials | Discovered new exit (range 5) 406 | -10/Materials | Identified exit to Materials 544 | -10/Materials | Identified exit to Mines 786 | -10/Materials | Discovered exit to Materials (range 3) 907 | -10/Materials | Learned location of 1 exit from Storage 933 | -10/Materials | Discovered exit to Mines (range 5) 948 | -10/Materials | Learned location of 2 exits from Subcaves 1003 | -10/Materials | Learned 2 Mines zone layouts 1018 | -10/Materials | Learned location of 2 exits from Subcaves 1025 | -10/Materials | Learned Storage terminal intel 1026 | -10/Materials | Learned location of Mines (-10) 1033 | -10/Materials | Identified exit to Subcaves 1049 | -10/Materials | Loaded intel: 14 trap records 1076 | -10/Materials | Learned 4 Recycling zone layouts 1111 | -10/Materials | Learned location of 1 exit from Recycling 1117 | -10/Materials | Entered Mines 1118 | -10/Mines | Identified exit to Exiles 1123 | -10/Mines | Found the Drone Emporium 1136 | -10/Mines | Found Prototype Device 1136 | -10/Mines | Identified Thief Drone Bay 1317 | -10/Mines | A weapon hastily lodged in a ceiling crevice suddenly fell to the ground 1460 | -10/Mines | Received a Mining Laser from a helpful Derelict 1714 | -10/Mines | Discovered exit to Materials (range 15) 1727 | -10/Mines | Learned 8 Materials zone layouts 2013 | -10/Mines | Discovered exit to Materials (range 4) 2142 | -10/Mines | Deemed a non-threat by the Exiles lab entrance 2150 | -10/Mines | Entered Exiles 2150 | -10/Exiles | Found Exiles lab abandoned 2952 | -10/Exiles | Discovered new exit (range 14) 2970 | -10/Exiles | Entered Mines 2988 | -9/Mines | Learned Materials emergency access door positions 3010 | -9/Mines | Met a Derelict bent on vengeance 3031 | -9/Mines | Assembled infested the area 3065 | -9/Mines | Core integrity fell below 50% 3077 | -9/Mines | Core integrity fell below 20% 3116 | -9/Mines | Lost 6 parts (1p2n3w) 3244 | -9/Mines | Destroyed by as-19326 with Assembled Heavy Rifle Last Messages --------------- 03079_ as-33184 destroyed. 03079_ Lgt. Treads destroyed. 03079_ System corrupted by crushing effect (+3). 03081_ The unstable cave ceiling collapses. 03082_ as-82337 destroyed. 03084_ Lgt. Assault Rifle destroyed. 03085_ Particle Gun destroyed. 03085_ as-94634 destroyed. 03085_ as-77855 destroyed. 03085_ Dropped Med. Storage Unit. 03086_ The unstable cave ceiling collapses. 03086_ as-87205 destroyed. 03087_ as-28911 destroyed. 03087_ as-21881 destroyed. 03087_ as-23190 destroyed. 03092_ System corrupted: Component data lost. 03113_ T-07 Excavator is excavating. 03176_ System corrupted: Matter fused (-10). 03242_ Slammed into as-19326. Map ----- +----------------------------------------------------+ | ????????????????????? ?????????????????? | | ???????????????????? #?????????????????? | | ???????????????????? #?????????????????? | | ???????????????????? #?????????????????? | | ???????????????????? #?????????????????? | | ????????????????? ? #?????????????????? | | ????????????????? #?????????????????? | | ????????????????? ????????????????? | | ????????????????# ????????????????? | | ???????????????? ##???????????????? | | ????????????? ?% ##??????????????? | | ???????????? ? ##?? ? ?????????? | | ???????????? ? #? #????????? | | ???????????? ## # #????????? | | ????????????# # ! * #????????? | | ???????????## !%* #???????? | | ????????#### | ### #??????? | | ????##### %!%= ????????????????? | | ???## = #?????????????????? | | ???# ##?????????????????? | | ???# / #?????????????????? | | ???# =!=a #??????????????????? | | ???## [ #???????????????????? | | ????##### #????????????????????? | | ????????## ##a ###????????????????????? | | ?????????###?##@##?????????????????????? | | ???????######## #?????????????????????? | | ??????## ## #?????????????????????? | | ??????# #?????????????????????? | | ??????# #?????????????????????? | | ??????## ##### #?????????????????????? | | ???????######## #?????????????????????? | | ??????????# #?????????????????????? | | ??????????# #?????????????????????? | | ??????????# #####?????????????????????? | | ??????????# #?????????????????????????? | | ??????????# #?????????????????????????? | | ??????????# #?????????????????????????? | | ??????????# #?????????????????????????? | | ??????????# ########??????????????????? | | ??????????# ##?????????????????? | | ??????????# #?????????????????? | | ??????????##### #?????????????????? | | ??????????????# ##?????????????????? | | ??????????????## #??????????????????? | | ???????????????## ##??????????????????? | | ????????????????####???????????????????? | | ???????????????????????????????????????? | | ???????????????????????????????????????? | | ???????????????????????????????????????? | +----------------------------------------------------+ Best States ------------- Heat Dissipation 39 Energy Generation 14 Energy Capacity 250 Matter Stores 300 Matter Capacity 300 Sight Range 16 Terrain Scan Density 10 Evasion (%) 50 Recoil Reduction 2 Item Schematics ----------------- None Robot Schematics ------------------ None Fabricated ------------ Nothing Alien Tech Used ----------------- None Achievements -------------- None Challenges ------------ None Game ------ Seed SalvageVoltaicRigger Manual? 0 Play Time 00:35:28 Cumulative 8.0 hours Start 2024.09.10 @ 16:48:44 End 2024.09.10 @ 20:09:18 Sessions 5 Manual Loads 0 Difficulty Rogue Special Mode None Game No. 6 Rogue 6 Adventurer 0 Explorer 0 Win Type - Total 0 Types 0/0/0/0/0/0/0/0/0 Lore% 11 Gallery% 8 Achievement% 16 Wizard Run 0 Options --------- Layout 2 ASCII 0 Keyboard 0 Movement Vi Keybinds 0 Fullscreen 1 Font 18/SmallcapsGlow Map View 50x49 Zoom Use 0% Tactical HUD 1 Map Filters NONE Filters NONE Steam 0 RUN: d9f69237-6687-49a4-a438-22bfe3530dda